bitfinex/quotes_BTCUSD_20241211
["timestamp","ask_amount","ask_price","bid_price","bid_amount"]
[1733941796052,0.3862173,100460.0,100450.0,0.008]
[1733941796288,0.5905851,100460.0,100450.0,0.008]
[1733941796841,0.5905979,100460.0,100450.0,0.008]
[1733941797089,0.8775612,100460.0,100450.0,0.002]
[1733941797262,0.7383013,100460.0,100450.0,0.002]
[1733941797465,0.7383013,100460.0,100440.0,0.0896909]
[1733941797647,0.0135598,100450.0,100440.0,0.0896909]
[1733941797844,0.10560525,100450.0,100440.0,8.59e-05]
[1733941799658,0.10760525,100450.0,100440.0,0.0896909]
[1733941800297,0.11060525,100450.0,100440.0,0.0896909]
[1733941800513,0.11060525,100450.0,100440.0,8.59e-05]
[1733941800514,0.67517255,100450.0,100440.0,8.59e-05]
[1733941800728,0.66987575,100450.0,100440.0,8.59e-05]
[1733941800958,0.94127575,100450.0,100440.0,8.59e-05]
[1733941801167,0.3,100430.0,100410.0,0.268883]
[1733941801389,0.10030845,100420.0,100410.0,0.179255]
[1733941801616,0.18108425,100420.0,100400.0,0.2689949]
[1733941801857,0.17790845,100420.0,100410.0,0.089632]
[1733941802488,0.17790845,100420.0,100410.0,0.0901831]
[1733941803154,0.18190845,100420.0,100410.0,0.0901831]
[1733941803375,0.18190845,100420.0,100410.0,0.2271464]
[1733941803376,0.10230845,100420.0,100410.0,0.2271464]
[1733941803585,0.002,100420.0,100410.0,0.3771464]
[1733941803789,0.004,100420.0,100410.0,0.3771464]
[1733941804446,0.004,100420.0,100410.0,0.3772323]
[1733941807403,0.004,100420.0,100410.0,0.4222323]
[1733941808440,0.002,100420.0,100410.0,0.4222323]
[1733941808649,0.01004172,100440.0,100430.0,0.089614]
[1733941808856,0.00546114,100460.0,100450.0,0.089596]
[1733941809064,0.10576959,100460.0,100450.0,0.089596]
[1733941809270,0.10048025,100460.0,100450.0,0.089596]
[1733941809473,0.10048025,100460.0,100440.0,0.089598]
[1733941809474,0.26052757,100460.0,100440.0,0.089598]
[1733941809672,0.10348237,100450.0,100440.0,0.089598]
[1733941809921,0.10030845,100450.0,100440.0,0.089598]
[1733941810132,0.10047364,100450.0,100440.0,0.089598]
[1733941811907,0.10047364,100450.0,100440.0,0.2265613]
[1733941812119,0.00016519,100450.0,100440.0,0.2275613]
[1733941812743,0.00016519,100450.0,100440.0,0.090598]
[1733941813589,0.00016519,100450.0,100440.0,0.2275613]
[1733941813801,0.00016519,100450.0,100440.0,0.3775613]
[1733941814720,0.00016519,100450.0,100440.0,0.4005613]
[1733941814930,0.00016519,100450.0,100440.0,0.4502613]
[1733941815140,0.00016519,100450.0,100440.0,0.5872246]
[1733941815356,0.00016519,100450.0,100440.0,0.4502613]
[1733941815567,0.00016519,100450.0,100440.0,0.5872246]
[1733941815785,1.9e-07,100450.0,100440.0,0.6640246]
[1733941815994,1.9e-07,100450.0,100440.0,0.76433305]
[1733941816236,0.00017199,100450.0,100440.0,0.76433305]
[1733941816887,0.00017199,100450.0,100440.0,0.5270613]
[1733941817305,0.00017199,100450.0,100440.0,0.5310613]
[1733941817731,0.00017199,100450.0,100440.0,0.244598]
[1733941817941,0.00017199,100450.0,100440.0,0.3805613]
[1733941818377,0.00017199,100450.0,100440.0,0.3855613]
[1733941818594,0.00017199,100450.0,100440.0,0.3765613]
[1733941818801,0.00017199,100450.0,100440.0,0.3875613]
[1733941819224,0.00017199,100450.0,100440.0,0.3855613]
[1733941819656,0.00017199,100450.0,100440.0,0.3895613]
[1733941820087,0.00017199,100450.0,100440.0,0.252598]
[1733941820515,0.00017199,100450.0,100440.0,0.3895613]
[1733941820744,0.10048044,100450.0,100440.0,0.102598]
[1733941821165,0.10048044,100450.0,100440.0,0.093598]
[1733941821374,0.10048044,100450.0,100440.0,0.098598]
[1733941821583,0.11173194,100450.0,100440.0,0.094598]
[1733941821782,0.11173194,100450.0,100440.0,0.089598]
[1733941822005,0.11173194,100450.0,100440.0,0.092598]
[1733941822422,0.11173194,100450.0,100440.0,0.090598]
[1733941823697,0.11173194,100450.0,100440.0,0.001]
[1733941824107,0.11173194,100450.0,100440.0,0.090605]
[1733941824925,0.11173194,100450.0,100440.0,0.001]
[1733941825131,0.11173194,100450.0,100440.0,0.090605]
[1733941825737,0.11173194,100450.0,100440.0,0.001]
[1733941826167,0.26173194,100450.0,100440.0,0.001]
[1733941826374,0.88300646,100450.0,100440.0,0.001]
[1733941826586,0.75600646,100450.0,100440.0,0.001]
[1733941826797,0.95600646,100450.0,100440.0,0.001]
[1733941827029,0.673786,100430.0,100410.0,8.59e-05]
[1733941827208,0.25030845,100420.0,100410.0,8.59e-05]
[1733941827419,0.44947145,100420.0,100410.0,8.59e-05]
[1733941827835,0.67957145,100420.0,100410.0,8.59e-05]
[1733941828265,0.48040845,100420.0,100410.0,8.59e-05]
[1733941828476,0.48340845,100420.0,100410.0,8.59e-05]
[1733941828687,0.68257145,100420.0,100410.0,8.59e-05]
[1733941829293,0.68457145,100420.0,100410.0,8.59e-05]
[1733941831161,0.48540845,100420.0,100410.0,8.59e-05]
[1733941831934,0.33540845,100420.0,100410.0,8.59e-05]
[1733941832141,0.68457145,100420.0,100410.0,8.59e-05]
[1733941832391,0.48540845,100420.0,100410.0,8.59e-05]
[1733941833546,0.18540845,100420.0,100410.0,8.59e-05]
[1733941833696,0.18540845,100420.0,100410.0,0.0897179]
[1733941833893,0.10530845,100420.0,100410.0,0.0897179]
[1733941834100,0.005,100420.0,100410.0,0.2266812]
[1733941834962,0.003,100420.0,100410.0,0.2266812]
[1733941835146,0.003,100420.0,100410.0,0.3766812]
[1733941835373,0.45676998,100450.0,100430.0,0.179225]
[1733941835598,0.10030845,100440.0,100430.0,0.179225]
[1733941836008,0.10030845,100440.0,100420.0,0.17924]
[1733941836356,0.10030845,100440.0,100420.0,0.179239]
[1733941836565,0.10030845,100440.0,100430.0,0.089614]
[1733941837609,0.10330845,100440.0,100430.0,0.089614]
[1733941839061,0.10530845,100440.0,100430.0,0.089614]
[1733941839884,0.10548025,100440.0,100430.0,0.089614]
[1733941840933,0.10548025,100440.0,100420.0,0.089619]
[1733941841145,0.10548025,100440.0,100420.0,0.179239]
[1733941841357,0.10548025,100440.0,100420.0,0.268858]
[1733941841539,0.10548025,100440.0,100420.0,0.179238]
[1733941841804,0.10248025,100440.0,100420.0,0.179237]
[1733941842018,0.52875245,100430.0,100410.0,0.0897099]
[1733941842233,0.72790345,100430.0,100410.0,0.0897099]
[1733941842613,0.52875245,100430.0,100410.0,0.0897099]
[1733941842839,0.72790545,100430.0,100410.0,8.59e-05]
[1733941843042,0.57495245,100430.0,100410.0,0.0897169]
[1733941843215,0.97326545,100430.0,100410.0,8.59e-05]
[1733941843633,0.22580845,100430.0,100410.0,0.3163042]
[1733941843847,0.17960845,100430.0,100420.0,0.089623]
[1733941845123,0.17960845,100430.0,100410.0,0.0897129]
[1733941845124,0.41741218,100430.0,100410.0,0.0897129]
[1733941845330,0.25030845,100420.0,100410.0,0.0897179]
[1733941845533,0.25030845,100420.0,100410.0,8.59e-05]
[1733941846943,0.88643475,100420.0,100410.0,8.59e-05]
[1733941847140,0.82607145,100420.0,100410.0,8.59e-05]
[1733941847874,0.82907145,100420.0,100410.0,8.59e-05]
[1733941848363,0.83107145,100420.0,100410.0,8.59e-05]
[1733941849091,0.85140638,100420.0,100410.0,8.59e-05]
[1733941850563,0.88263681,100420.0,100410.0,8.59e-05]
[1733941850978,0.85140638,100420.0,100410.0,8.59e-05]
[1733941851531,0.83836968,100420.0,100410.0,8.59e-05]
[1733941851884,0.70140638,100420.0,100410.0,8.59e-05]
[1733941853973,0.55140638,100420.0,100410.0,8.59e-05]
[1733941857027,0.53640638,100420.0,100410.0,8.59e-05]
[1733941860232,0.79645525,100420.0,100410.0,8.59e-05]
[1733941860579,0.372183,100410.0,100400.0,8.59e-05]
[1733941860733,0.68625475,100410.0,100400.0,8.59e-05]
[1733941860938,0.77519007,100410.0,100400.0,8.59e-05]
[1733941861143,0.68625475,100410.0,100400.0,8.59e-05]
[1733941861538,0.77519007,100410.0,100400.0,8.59e-05]
[1733941861748,0.96055337,100410.0,100400.0,8.59e-05]
[1733941861951,1.29395636,100410.0,100400.0,0.000637]
[1733941862697,1.33486371,100410.0,100400.0,0.000637]
[1733941863508,0.94065475,100410.0,100400.0,0.001637]
[1733941863714,1.04974032,100410.0,100400.0,0.002637]
[1733941864230,1.35000796,100410.0,100400.0,0.002637]
[1733941865476,1.48345903,100410.0,100400.0,0.002637]
[1733941866360,1.63263923,100410.0,100400.0,0.002637]
[1733941866910,1.49918816,100410.0,100400.0,0.002637]
[1733941867551,1.3212534,100410.0,100400.0,0.002637]
[1733941868342,0.548453,100390.0,100370.0,0.089667]
[1733941868571,0.548453,100390.0,100370.0,0.089832]
[1733941868572,0.10030845,100380.0,100370.0,0.089832]
[1733941868952,0.33110845,100380.0,100370.0,0.000165]
[1733941869203,0.53035045,100380.0,100370.0,0.000165]
[1733941869762,0.53035045,100380.0,100370.0,0.001165]
[1733941869941,0.33110845,100380.0,100370.0,0.090833]
[1733941870147,0.25030845,100380.0,100370.0,0.090833]
[1733941870937,0.25030845,100380.0,100370.0,0.089833]
[1733941871327,0.25330845,100380.0,100370.0,0.000165]
[1733941871800,0.25530845,100380.0,100370.0,0.000165]
[1733941872357,0.45455045,100380.0,100370.0,0.000165]
[1733941873352,0.59151375,100380.0,100370.0,0.000165]
[1733941873600,0.8371371,100380.0,100370.0,0.000165]
[1733941873773,0.61451375,100380.0,100370.0,0.000165]
[1733941874346,0.61251375,100380.0,100370.0,0.000165]
[1733941874554,0.10730845,100380.0,100370.0,0.000251]
[1733941874701,0.10730845,100380.0,100370.0,0.2268823]
[1733941874902,0.10330845,100380.0,100370.0,0.3026823]
[1733941875263,0.003,100380.0,100370.0,0.4526823]
[1733941875492,0.60073464,100420.0,100410.0,0.089632]
[1733941875705,0.30048045,100420.0,100410.0,0.089632]
[1733941876095,0.10048045,100420.0,100410.0,0.089632]
[1733941876938,0.10048045,100420.0,100390.0,0.261291]
[1733941876939,0.26312117,100420.0,100390.0,0.261291]
[1733941877147,0.01881272,100420.0,100410.0,0.001]
[1733941877352,0.11912117,100420.0,100410.0,0.090632]
[1733941877786,0.12312117,100420.0,100410.0,0.090632]
[1733941877990,0.11712117,100420.0,100410.0,0.089632]
[1733941878191,0.12312117,100420.0,100410.0,0.089632]
[1733941878601,0.27312117,100420.0,100400.0,0.268907]
[1733941878806,0.10030845,100410.0,100400.0,0.17842505]
[1733941879688,0.10030845,100410.0,100390.0,0.262288]
[1733941879895,0.10030845,100410.0,100390.0,0.261288]
[1733941880111,0.10030845,100410.0,100400.0,0.089641]
[1733941880717,0.10230845,100410.0,100400.0,0.089641]
[1733941881071,0.10430845,100410.0,100400.0,0.089641]
[1733941881276,0.10230845,100410.0,100400.0,0.089641]
[1733941881732,0.10430845,100410.0,100400.0,0.089641]
[1733941885347,0.16281272,100420.0,100410.0,0.15]
[1733941885348,0.00022701,100420.0,100410.0,0.15]
[1733941885558,0.00022701,100420.0,100410.0,0.61545426]
[1733941885761,0.00022701,100420.0,100410.0,0.6144586]
[1733941886906,0.00122701,100420.0,100410.0,0.6234586]
[1733941887322,0.00122701,100420.0,100410.0,0.6284586]
[1733941888852,0.00122701,100420.0,100410.0,0.64876921]
[1733941891188,1e-08,100420.0,100410.0,1.45661515]
[1733941891394,0.0001718,100440.0,100430.0,0.2318]
[1733941891599,0.0001718,100440.0,100430.0,0.5955056]
[1733941892024,0.0001718,100440.0,100430.0,0.4585423]
[1733941892230,0.0001718,100440.0,100430.0,0.4355423]
[1733941892645,0.49721819,100470.0,100450.0,0.2509]
[1733941892856,0.10894483,100500.0,100490.0,0.089561]
[1733941893066,0.04939999,100510.0,100490.0,0.24055596]
[1733941893278,0.61513268,100520.0,100500.0,0.0009949]
[1733941893498,0.18585986,100510.0,100470.0,0.3765413]
[1733941893713,0.00315141,100500.0,100480.0,0.089564]
[1733941893921,0.10030845,100490.0,100480.0,0.179129]
[1733941894129,0.10030845,100490.0,100470.0,0.089572]
[1733941894337,0.10030845,100490.0,100470.0,0.179145]
[1733941894338,0.10085941,100490.0,100470.0,0.179145]
[1733941894616,0.10085941,100490.0,100470.0,0.268718]
[1733941894830,0.44989541,100490.0,100470.0,0.001]
[1733941895045,0.27999581,100480.0,100470.0,0.001]
[1733941895263,0.37715245,100480.0,100470.0,0.001]
[1733941895475,0.52715245,100480.0,100470.0,0.001]
[1733941895700,0.81411575,100480.0,100470.0,0.002]
[1733941895922,0.52715245,100480.0,100470.0,0.001]
[1733941896126,0.199065,100470.0,100450.0,0.179184]
[1733941896338,0.199065,100470.0,100450.0,0.089588]
[1733941896339,0.10030845,100460.0,100450.0,0.089588]
[1733941896768,0.10030845,100460.0,100440.0,0.179196]
[1733941896990,0.49848645,100460.0,100440.0,0.089597]
[1733941897206,0.29939245,100460.0,100440.0,0.089597]
[1733941897420,0.10030845,100460.0,100440.0,0.179196]
[1733941897631,0.08956265,100480.0,100450.0,0.0009954]
[1733941897845,0.10030845,100460.0,100450.0,0.089596]
[1733941898888,0.002,100470.0,100450.0,0.31715072]
[1733941899097,0.002,100470.0,100460.0,0.089582]
[1733941899098,0.10030845,100470.0,100460.0,0.089582]
[1733941900125,0.10230845,100470.0,100460.0,0.089582]
[1733941900364,0.10430845,100470.0,100460.0,0.089582]
[1733941900603,0.004,100470.0,100460.0,0.37754072]
[1733941900825,0.006,100470.0,100460.0,0.3765453]
[1733941901028,0.002,100470.0,100460.0,0.3995453]
[1733941901233,0.002,100470.0,100460.0,0.46775767]
[1733941901439,0.002,100470.0,100460.0,0.71806612]
[1733941901649,0.00072296,100490.0,100470.0,0.15]
[1733941901858,0.10103141,100490.0,100480.0,0.08957]
[1733941902527,0.10103141,100490.0,100470.0,0.089571]
[1733941902735,0.10030845,100480.0,100470.0,0.179144]
[1733941903853,0.10030845,100480.0,100470.0,0.180144]
[1733941904261,0.10030845,100480.0,100470.0,0.183144]
[1733941904939,0.10430845,100480.0,100470.0,0.183144]
[1733941905316,0.10030845,100480.0,100470.0,0.183144]
[1733941905515,0.10030845,100480.0,100470.0,0.179144]
[1733941905720,0.10230845,100480.0,100470.0,0.179144]
[1733941905923,0.10430845,100480.0,100470.0,0.179144]
[1733941906664,0.004,100480.0,100470.0,0.53431967]
[1733941908058,0.002,100480.0,100470.0,0.53431967]
[1733941908644,0.00072296,100490.0,100480.0,0.08957]
[1733941909140,0.00072296,100490.0,100480.0,0.29574077]
[1733941909344,0.00072296,100490.0,100480.0,0.08957]
[1733941909548,0.10103141,100490.0,100480.0,0.08957]
[1733941910231,0.10303141,100490.0,100480.0,0.08957]
[1733941910442,0.00072296,100490.0,100480.0,0.08957]
[1733941910647,0.00672296,100490.0,100480.0,0.08957]
[1733941910854,0.10703141,100490.0,100480.0,0.08957]
[1733941911526,0.10903141,100490.0,100470.0,0.179144]
[1733941911733,0.10030845,100480.0,100470.0,0.179144]
[1733941912986,0.10030845,100480.0,100470.0,0.181144]
[1733941913413,0.00072296,100490.0,100480.0,0.08957]
[1733941913615,0.00072296,100490.0,100480.0,0.29474567]
[1733941914028,0.00072296,100490.0,100480.0,0.08957]
[1733941915408,0.00472296,100490.0,100480.0,0.08957]
[1733941917314,0.00472296,100490.0,100480.0,0.44574078]
[1733941917519,0.00472296,100490.0,100480.0,0.44474567]
[1733941919639,0.10503141,100490.0,100480.0,0.23957]
[1733941920321,0.12327455,100490.0,100460.0,0.089583]
[1733941920533,0.22530845,100480.0,100460.0,0.089583]
[1733941920665,0.42435445,100480.0,100450.0,0.17918]
[1733941920851,0.77341045,100480.0,100450.0,0.268772]
[1733941921082,0.57435445,100480.0,100460.0,0.089582]
[1733941921279,0.57435445,100480.0,100460.0,0.179169]
[1733941921652,0.77340645,100480.0,100460.0,0.089582]
[1733941921778,0.97246845,100480.0,100450.0,0.268773]
[1733941921983,0.199066,100470.0,100450.0,0.089589]
[1733941922219,0.10030845,100460.0,100450.0,0.090589]
[1733941922400,0.10030845,100460.0,100450.0,0.0896749]
[1733941922838,0.18340845,100460.0,100450.0,8.59e-05]
[1733941923039,0.18340845,100460.0,100450.0,0.0896819]
[1733941923624,0.18340845,100460.0,100450.0,8.59e-05]
[1733941923999,0.38249245,100460.0,100450.0,8.59e-05]
[1733941924405,0.38249245,100460.0,100450.0,0.0010859]
[1733941924406,0.18340845,100460.0,100450.0,0.0010859]
[1733941925102,0.18340845,100460.0,100450.0,8.59e-05]
[1733941925281,0.38449245,100460.0,100450.0,8.59e-05]
[1733941925476,0.38549245,100460.0,100450.0,8.59e-05]
[1733941926274,0.53549245,100460.0,100450.0,8.59e-05]
[1733941927122,0.18640845,100460.0,100450.0,8.59e-05]
[1733941927325,0.39757021,100460.0,100450.0,8.59e-05]
[1733941928919,0.54757021,100460.0,100450.0,8.59e-05]
[1733941929102,0.59297021,100460.0,100450.0,8.59e-05]
[1733941929303,0.99258875,100460.0,100450.0,8.59e-05]
[1733941929550,0.81498051,100460.0,100450.0,8.59e-05]
[1733941929989,0.66498051,100460.0,100450.0,8.59e-05]
[1733941930110,1.1606583,100460.0,100450.0,8.59e-05]
[1733941930348,0.99558875,100460.0,100450.0,8.59e-05]
[1733941930549,1.36759905,100460.0,100450.0,8.59e-05]
[1733941930805,1.21759905,100460.0,100450.0,8.59e-05]
[1733941931044,0.97198051,100460.0,100450.0,8.59e-05]
[1733941931258,0.83877433,100460.0,100450.0,8.59e-05]
[1733941931464,0.58997021,100460.0,100450.0,8.59e-05]
[1733941931661,0.43997021,100460.0,100450.0,8.59e-05]
[1733941931865,0.45497021,100460.0,100450.0,0.0020859]
[1733941932489,0.25588621,100460.0,100450.0,0.0020859]
[1733941933109,0.20448621,100460.0,100450.0,0.0906819]
[1733941933323,0.12138621,100460.0,100450.0,0.0906819]
[1733941933536,0.12738621,100460.0,100450.0,0.0916819]
[1733941933744,0.11530845,100460.0,100450.0,0.0916819]
[1733941933944,0.10930845,100460.0,100450.0,0.0906819]
[1733941934152,0.90080867,100490.0,100450.0,0.0906819]
[1733941934153,0.40083926,100490.0,100480.0,0.08957]
[1733941934385,0.10103141,100490.0,100480.0,0.41063955]
[1733941934610,0.00072296,100490.0,100480.0,0.41063955]
[1733941935466,0.00972296,100490.0,100480.0,0.24057]
[1733941935676,9.6e-07,100490.0,100480.0,0.684948]
[1733941935891,0.22245863,100510.0,100500.0,0.089552]
[1733941936102,0.00033704,100510.0,100500.0,0.089552]
[1733941936972,0.10064549,100510.0,100500.0,0.089552]
[1733941938263,0.10264549,100510.0,100500.0,0.089552]
[1733941939084,0.10264549,100510.0,100500.0,0.09054693]
[1733941939301,0.00233704,100510.0,100500.0,0.41062155]
[1733941939504,0.00033704,100510.0,100500.0,0.41062155]
[1733941939714,0.00233704,100510.0,100500.0,0.41062155]
[1733941940419,0.00033704,100510.0,100500.0,0.41062155]
[1733941941433,0.00033704,100510.0,100500.0,0.41162155]
[1733941941744,0.00033704,100510.0,100500.0,0.41562155]
[1733941942112,0.00033704,100510.0,100500.0,0.53893]
[1733941942487,8e-07,100530.0,100520.0,0.15]
[1733941942704,8e-07,100530.0,100520.0,0.76631515]
[1733941942917,3.57422969,100540.0,100530.0,0.49406955]
[1733941942918,3.55433749,100540.0,100530.0,0.49406955]
[1733941943124,3.51455149,100540.0,100530.0,0.74425107]
[1733941943340,3.38587248,100540.0,100530.0,1.24463873]
[1733941943904,3.38587248,100540.0,100530.0,1.18606847]
[1733941944103,3.38587248,100540.0,100530.0,0.787803]
[1733941944335,3.38587248,100540.0,100530.0,1.06610859]
[1733941944544,3.38587248,100540.0,100530.0,1.21930592]
[1733941944754,3.38587248,100540.0,100530.0,1.19107787]
[1733941945119,3.38587248,100540.0,100530.0,1.0412048]
[1733941945330,3.38587248,100540.0,100530.0,1.19107997]
[1733941945744,3.38587248,100540.0,100530.0,1.22573398]
[1733941945870,3.38604428,100540.0,100530.0,1.22573398]
[1733941946079,3.38704428,100540.0,100530.0,1.23273398]
[1733941946281,3.38704428,100540.0,100530.0,1.20207997]
[1733941947085,3.38704428,100540.0,100530.0,1.20197997]
[1733941947410,3.38704428,100540.0,100530.0,0.699803]
[1733941947677,3.38704428,100540.0,100530.0,1.09807227]
[1733941949487,3.28757928,100540.0,100530.0,1.24487227]
[1733941950039,3.28757928,100540.0,100530.0,1.30377227]
[1733941950341,3.18811428,100540.0,100530.0,1.30367227]
[1733941951456,3.08864928,100540.0,100530.0,1.30367227]
[1733941952074,3.06875628,100540.0,100530.0,1.30367227]
[1733941952287,2.98918428,100540.0,100530.0,1.47464182]
[1733941952490,2.81218066,100540.0,100530.0,1.39724093]
[1733941952726,2.81218066,100540.0,100530.0,2.04484693]
[1733941952938,2.52000598,100540.0,100530.0,1.84064693]
[1733941953159,2.52000598,100540.0,100530.0,1.87130094]
[1733941953160,2.35154097,100540.0,100530.0,1.87130094]
[1733941953373,2.35054097,100540.0,100530.0,1.86430094]
[1733941953786,2.35054097,100540.0,100530.0,1.85530094]
[1733941953787,2.34617375,100540.0,100530.0,1.85530094]
[1733941954050,2.34617375,100540.0,100530.0,1.85930094]
[1733941954253,2.04080352,100540.0,100530.0,1.85930094]
[1733941954499,2.04080352,100540.0,100530.0,1.80320494]
[1733941954758,2.04080352,100540.0,100530.0,1.36182187]
[1733941954957,2.03737401,100540.0,100530.0,1.50769494]
[1733941955197,1.92398084,100540.0,100530.0,1.50769494]
[1733941955420,1.92898084,100540.0,100530.0,1.24082539]
[1733941955639,1.92898084,100540.0,100530.0,1.18187227]
[1733941955876,1.92898084,100540.0,100530.0,1.35294182]
[1733941956096,1.84440884,100540.0,100530.0,1.41189494]
[1733941956316,1.82451584,100540.0,100530.0,1.41289494]
[1733941956949,1.82451584,100540.0,100530.0,1.42089494]
[1733941957183,1.80462284,100540.0,100530.0,1.42089494]
[1733941957352,1.80462284,100540.0,100530.0,1.18287227]
[1733941957353,1.72505084,100540.0,100530.0,1.18287227]
[1733941957571,1.72505084,100540.0,100530.0,1.18687227]
[1733941958084,1.55658583,100540.0,100530.0,1.18687227]
[1733941958219,1.55658583,100540.0,100530.0,1.01317227]
[1733941958618,1.55658583,100540.0,100530.0,0.91317227]
[1733941959541,1.55758583,100540.0,100530.0,0.91917227]
[1733941959895,1.55758583,100540.0,100530.0,0.7692992]
[1733941960134,1.55758583,100540.0,100530.0,0.516903]
[1733941960339,1.55758583,100540.0,100530.0,0.525903]
[1733941960745,1.55758583,100540.0,100530.0,0.104525]
[1733941960963,1.55758583,100540.0,100530.0,0.27559455]
[1733941961568,1.55671276,100540.0,100530.0,0.098525]
[1733941961812,1.63991276,100540.0,100530.0,0.004]
[1733941962033,1.78849428,100540.0,100530.0,0.013]
[1733941962454,1.78849428,100540.0,100530.0,0.009]
[1733941962906,1.78849428,100540.0,100520.0,0.159163]
[1733941962907,0.00012693,100530.0,100520.0,0.159163]
[1733941963303,0.00012693,100520.0,100510.0,0.159179]
[1733941963491,0.08332693,100520.0,100510.0,0.159179]
[1733941963866,0.0832,100520.0,100510.0,0.33124337]
[1733941964095,0.0832,100520.0,100510.0,0.33024855]
[1733941964296,1.69546196,100540.0,100520.0,0.079579]
[1733941964493,0.00807586,100530.0,100520.0,0.35422915]
[1733941964709,1.69546196,100540.0,100520.0,0.43282055]
[1733941964883,1.68831276,100540.0,100530.0,0.15]
[1733941965088,1.68831276,100540.0,100530.0,0.229578]
[1733941965366,1.69346196,100540.0,100530.0,0.229578]
[1733941965997,1.69546196,100540.0,100530.0,0.229578]
[1733941966213,1.69496196,100540.0,100530.0,0.229578]
[1733941966415,1.69296196,100540.0,100530.0,0.229578]
[1733941966642,1.69396196,100540.0,100530.0,0.229578]
[1733941966895,1.68881276,100540.0,100530.0,0.229578]
[1733941967104,1.69296196,100540.0,100530.0,0.229578]
[1733941967312,1.69496196,100540.0,100530.0,0.40064755]
[1733941967911,1.69496196,100540.0,100530.0,0.229578]
[1733941968119,1.69696196,100540.0,100530.0,0.229578]
[1733941969382,1.69699918,100540.0,100530.0,0.2296638]
[1733941969587,1.69181276,100540.0,100530.0,0.2296638]
[1733941970668,1.69700158,100540.0,100530.0,0.2296638]
[1733941971950,1.69687465,100540.0,100530.0,0.2296638]
[1733941972180,1.69700158,100540.0,100530.0,0.2296638]
[1733941972388,1.696779,100540.0,100530.0,0.42373335]
[1733941972824,1.69168583,100540.0,100530.0,0.42373335]
[1733941973228,1.696779,100540.0,100530.0,0.42373335]
[1733941973646,1.694779,100540.0,100530.0,0.42373335]
[1733941973853,1.68968583,100540.0,100530.0,0.42373335]
[1733941974069,1.55808583,100540.0,100530.0,0.43073335]
[1733941974902,1.55608583,100540.0,100530.0,0.43073335]
[1733941975104,1.55608583,100540.0,100530.0,0.43273335]
[1733941975724,1.55608583,100540.0,100530.0,0.5330418]
[1733941976144,1.43672783,100540.0,100530.0,1.08132117]
[1733941976349,1.43672783,100540.0,100530.0,1.18132117]
[1733941977199,1.33726283,100540.0,100530.0,1.17432117]
[1733941977608,1.33726283,100540.0,100530.0,1.17732117]
[1733941978034,1.26826282,100540.0,100530.0,1.17532117]
[1733941978239,1.26926282,100540.0,100530.0,1.17532117]
[1733941978872,1.26826282,100540.0,100530.0,1.17532117]
[1733941979081,1.27126282,100540.0,100530.0,1.07532117]
[1733941979476,1.26826282,100540.0,100530.0,1.07232117]
[1733941979681,1.26826282,100540.0,100530.0,0.9224481]
[1733941979823,1.26926282,100540.0,100530.0,0.9224481]
[1733941980023,1.26926282,100540.0,100530.0,0.6740418]
[1733941980222,1.26926282,100540.0,100530.0,0.5240418]
[1733941980432,1.26926282,100540.0,100530.0,0.54451727]
[1733941981262,1.26826282,100540.0,100530.0,0.54451727]
[1733941981434,1.26826282,100540.0,100530.0,0.42120882]
[1733941981661,1.26826282,100540.0,100530.0,0.42720882]
[1733941982063,1.26826282,100540.0,100530.0,0.2446638]
[1733941982282,1.26820437,100540.0,100530.0,0.2446638]
[1733941982461,1.26820437,100540.0,100530.0,0.2386638]
[1733941982660,1.26820437,100540.0,100530.0,0.2296638]
[1733941982865,1.26820437,100540.0,100530.0,0.2406638]
[1733941983064,1.19920436,100540.0,100530.0,0.2406638]
[1733941983298,1.19920436,100540.0,100530.0,0.2316638]
[1733941983717,1.19920436,100540.0,100530.0,0.40942062]
[1733941984095,1.19933129,100540.0,100530.0,0.2386638]
[1733941984279,1.24763129,100540.0,100530.0,0.0886638]
[1733941984463,1.24763129,100540.0,100530.0,0.0866638]
[1733941984875,1.24763129,100540.0,100530.0,0.0886638]
[1733941985079,1.42451281,100540.0,100530.0,0.0787158]
[1733941985288,1.42451281,100540.0,100530.0,0.0767158]
[1733941985946,1.42451281,100540.0,100530.0,0.0697158]
[1733941986360,1.42451281,100540.0,100530.0,0.2197158]
[1733941986777,1.42451281,100540.0,100530.0,0.0727158]
[1733941986999,1.42451281,100540.0,100530.0,0.0030858]
[1733941987209,1.42451281,100540.0,100530.0,8.58e-05]
[1733941988057,1.62343781,100540.0,100530.0,8.58e-05]
[1733941988267,1.42451281,100540.0,100530.0,8.58e-05]
[1733941989282,1.42751281,100540.0,100530.0,8.58e-05]
[1733941989693,1.42751281,100540.0,100530.0,0.0697158]
[1733941990330,1.42751281,100540.0,100530.0,8.58e-05]
[1733941993099,1.42751281,100540.0,100530.0,0.0697158]
[1733941993513,1.42751281,100540.0,100530.0,8.58e-05]
[1733941996293,1.57751281,100540.0,100530.0,8.58e-05]
[1733941996504,1.77643781,100540.0,100530.0,8.58e-05]
[1733941996660,0.1235,100520.0,100510.0,0.06964]
[1733941996843,0.00012693,100510.0,100500.0,0.06981124]
[1733941997047,0.00012693,100510.0,100500.0,0.13945924]
[1733941997256,0.10030845,100510.0,100500.0,0.13945924]
[1733941997450,0.10030845,100510.0,100500.0,0.06981124]
[1733941997451,0.17540845,100510.0,100500.0,0.06981124]
[1733941997858,0.37439345,100510.0,100500.0,0.00016524]
[1733941998076,0.42309345,100510.0,100500.0,0.00016524]
[1733942000386,0.89407739,100510.0,100500.0,0.00016524]
[1733942000596,1.09237839,100510.0,100500.0,0.003]
[1733942001440,0.327004,100500.0,100490.0,8.59e-05]
[1733942001652,0.42731245,100500.0,100490.0,8.59e-05]
[1733942002306,0.89829639,100500.0,100490.0,8.59e-05]
[1733942002539,0.325246,100480.0,100460.0,0.139351]
[1733942002754,0.10030845,100470.0,100460.0,0.069675]
[1733942004008,0.10030845,100470.0,100460.0,0.076675]
[1733942004215,0.10030845,100470.0,100460.0,0.07022596]
[1733942004661,0.12607897,100480.0,100470.0,0.092672]
[1733942004869,0.12607897,100480.0,100470.0,0.41365594]
[1733942005486,0.0098283,100490.0,100480.0,0.092665]
[1733942005728,0.0098283,100490.0,100480.0,0.26364894]
[1733942005930,0.0455,100500.0,100480.0,0.26364894]
[1733942006138,0.14580845,100500.0,100490.0,0.069658]
[1733942006582,0.0099604,100510.0,100490.0,0.48329994]
[1733942006847,0.0099604,100510.0,100500.0,0.26363494]
[1733942007047,0.0478,100520.0,100500.0,0.33328594]
[1733942007253,0.14810845,100520.0,100500.0,0.33328594]
[1733942007466,0.14810845,100520.0,100510.0,0.069644]
[1733942007691,0.22700845,100520.0,100510.0,0.069644]
[1733942008252,0.22717348,100520.0,100510.0,0.069644]
[1733942009457,0.22917348,100520.0,100510.0,0.069644]
[1733942012368,0.00216503,100520.0,100510.0,0.41462284]